lending/lending_fUSD_20250508
["ID","MTS","AMOUNT","RATE_DAILY","PERIOD"]
[360304757,1746735040645,-500.0,0.000221,2]
[360304758,1746735040655,-500.0,0.000221,2]
[360304759,1746735040664,-500.0,0.000221,2]
[360304760,1746735040674,-3935.3145,0.00022384,10]
[360304761,1746735040683,-500.0,0.000224,2]
[360304762,1746735040693,-500.0,0.000224,2]
[360304763,1746735040703,-530.01864699,0.000224,2]
[360304764,1746735040712,-500.0,0.000224,2]
[360304765,1746735040722,-500.0,0.000224,2]
[360304766,1746735040732,-500.89911374,0.000224,2]
[360304767,1746735040742,-500.0,0.000224,2]
[360304768,1746735040751,-500.0,0.000224,2]
[360304769,1746735040761,-12260.86363296,0.00022486,7]
[360304770,1746735040771,-160.50538021,0.00022633,2]
[360304771,1746735040781,-500.0,0.00022633,2]
[360304772,1746735040790,-500.0,0.00022633,2]
[360304773,1746735040801,-150.0,0.00022705,7]
[360304774,1746735040811,-1000.0,0.00022806,2]
[360304775,1746735040822,-1600.0,0.00022935,2]
[360304776,1746735040831,-400.0,0.00023,2]
[360304777,1746735040841,-280.0,0.00023,2]
[360304778,1746735040851,-1601.59999997,0.00023269,2]
[360304779,1746735040860,-12260.86363296,0.00023279,8]
[360304780,1746735040870,-588.85,0.00023836,2]
[360304781,1746735040882,-500.0,0.000239,2]
[360304782,1746735041109,-500.0,0.00023973,2]
[360304783,1746735041119,-12260.86363296,0.00024072,10]
[360304784,1746735041130,-2812.68241167,0.00024242,2]
[360304785,1746735041139,-158.55016378,0.00024318,2]
[360304786,1746735041149,-222.0,0.00024658,7]
[360304787,1746735041160,-222.0,0.00024658,7]
[360304788,1746735041170,-501.93748199,0.00024673,2]
[360304789,1746735041179,-500.0,0.00024773,2]
[360304790,1746735041189,-508.18424583,0.00024773,2]
[360304791,1746735041199,-500.0,0.00024799,2]
[360304792,1746735041209,-500.0,0.00024799,2]
[360304793,1746735041218,-151.0,0.000248,7]
[360304794,1746735041229,-234.311584,0.000248,7]
[360304795,1746735041244,-163.559307,0.000248,7]
[360304796,1746735041259,-151.0,0.000248,7]
[360304797,1746735041269,-151.0,0.000248,7]
[360304798,1746735041279,-151.0,0.000248,7]
[360304799,1746735041289,-151.0,0.000248,7]
[360304800,1746735041301,-2106.901667,0.000248,7]
[360304801,1746735041311,-2106.901667,0.000248,7]
[360304802,1746735041320,-151.0,0.000248,7]
[360304803,1746735041329,-704.594677,0.000248,7]
[360304804,1746735041339,-151.0,0.000248,7]
[360304805,1746735041348,-704.594677,0.000248,7]
[360304806,1746735041357,-524.67713,0.000248,7]
[360304807,1746735041367,-524.67713,0.000248,7]
[360304808,1746735041376,-1151.861518,0.000248,7]
[360304809,1746735041386,-1151.861518,0.000248,7]
[360304810,1746735041395,-969.961703,0.000248,7]
[360304811,1746735041404,-151.0,0.000248,7]
[360304812,1746735041414,-969.961703,0.000248,7]
[360304813,1746735041423,-151.0,0.000248,7]
[360304814,1746735041433,-151.0,0.000248,7]
[360304815,1746735041443,-151.0,0.000248,7]
[360304816,1746735041452,-151.0,0.000248,7]
[360304817,1746735041461,-286.238583,0.000248,7]
[360304818,1746735041471,-286.238583,0.000248,7]
[360304819,1746735041480,-163.009931,0.000248,7]
[360304820,1746735041490,-163.009931,0.000248,7]
[360304821,1746735041500,-115751.19106,0.000248,3]
[360304822,1746735041509,-12260.86363296,0.00024866,12]
[360304823,1746735041518,-503.85916262,0.00024873,2]
[360304824,1746735041528,-57875.5955299,0.0002489,3]
[360304825,1746735041537,-1035.50121157,0.00024899,10]
[360304826,1746735041547,-151.0,0.000249,7]
[360304827,1746735041556,-151.0,0.000249,7]
[360304828,1746735041566,-151.0,0.000249,7]
[360304829,1746735041575,-151.0,0.000249,7]
[360304830,1746735041584,-151.0,0.000249,7]
[360304831,1746735041593,-2106.901667,0.000249,7]
[360304832,1746735041602,-151.0,0.000249,7]
[360304833,1746735041612,-2106.901667,0.000249,7]
[360304834,1746735041621,-151.0,0.000249,7]
[360304835,1746735041630,-151.0,0.000249,7]
[360304836,1746735041639,-704.594677,0.000249,7]
[360304837,1746735041648,-151.0,0.000249,7]
[360304838,1746735041658,-704.594677,0.000249,7]
[360304839,1746735041668,-524.67713,0.000249,7]
[360304840,1746735041677,-524.67713,0.000249,7]
[360304841,1746735041687,-1151.861518,0.000249,7]
[360304842,1746735041696,-1151.861518,0.000249,7]
[360304843,1746735041705,-969.961703,0.000249,7]
[360304844,1746735041715,-151.0,0.000249,7]
[360304845,1746735041724,-969.961703,0.000249,7]
[360304846,1746735041733,-243.363729,0.000249,7]
[360304847,1746735041743,-151.0,0.000249,7]
[360304848,1746735041752,-151.0,0.000249,7]
[360304849,1746735041762,-225.785249,0.000249,7]
[360304850,1746735041771,-286.238583,0.000249,7]
[360304851,1746735041781,-286.238583,0.000249,7]
[360304852,1746735041791,-163.009931,0.000249,7]
[360304853,1746735041802,-163.009931,0.000249,7]
[360304854,1746735041811,-1300.0,0.000249,9]
[360304855,1746735041820,-45864.5481752,0.000249,3]
[360304856,1746735041830,-6790.0,0.0002491,2]
[360304857,1746735041839,-153.0,0.0002491,2]
[360304858,1746735041849,-895.762,0.0002491,2]
[360304859,1746735041862,-600.42,0.0002498,2]
[360304860,1746735041871,-450.0,0.00025,2]
[360304861,1746735041881,-28937.7977649,0.00025183,3]
[360304862,1746735041890,-22932.2740876,0.00025249,3]
[360304863,1746735042111,-151.0,0.00025269,7]
[360304864,1746735042122,-208.121697,0.00025269,7]
[360304865,1746735042131,-243.363729,0.00025269,7]
[360304866,1746735042141,-19834.82944224,0.00025649,2]
[360304867,1746735042151,-1000.0,0.00025657,2]
[360304868,1746735042161,-12260.86363296,0.00025659,13]
[360304869,1746735042171,-28937.7977649,0.00025948,3]
[360304870,1746735042180,-22932.2740876,0.00025949,3]
[360304871,1746735042191,-1123.57,0.00025955,2]
[360304872,1746735042201,-969.961703,0.00025958,7]
[360304873,1746735042211,-969.961703,0.00025958,7]
[360304874,1746735042221,-151.0,0.00025958,7]
[360304875,1746735042230,-630.61406815,0.00025958,2]
[360304876,1746735042239,-229.49482692,0.00025958,2]
[360304877,1746735042248,-155.38500103,0.00025958,2]
[360304878,1746735042258,-280.99320389,0.00025958,2]
[360304879,1746735042268,-630.61406815,0.00025958,2]
[360304880,1746735042277,-630.61406815,0.00025958,2]
[360304881,1746735042287,-630.61406815,0.00025958,2]
[360304882,1746735042298,-630.61406815,0.00025958,2]
[360304883,1746735042307,-630.61406815,0.00025958,2]
[360304884,1746735042317,-630.61406815,0.00025958,2]
[360304885,1746735042327,-630.61406815,0.00025958,2]
[360304886,1746735042336,-630.61406815,0.00025958,2]
[360304887,1746735042346,-630.61406815,0.00025958,2]
[360304888,1746735042355,-630.61406815,0.00025958,2]
[360304889,1746735042365,-630.61406815,0.00025958,2]
[360304890,1746735042374,-630.61406815,0.00025958,2]
[360304891,1746735042383,-630.61406815,0.00025958,2]
[360304892,1746735042393,-630.61406815,0.00025958,2]
[360304893,1746735042402,-630.61406815,0.00025958,2]
[360304894,1746735042412,-630.61406815,0.00025958,2]
[360304895,1746735042421,-630.61406815,0.00025958,2]
[360304896,1746735042430,-630.61406815,0.00025958,2]
[360304897,1746735042440,-630.61406815,0.00025958,2]
[360304898,1746735042449,-630.61406815,0.00025958,2]
[360304899,1746735042459,-630.61406815,0.00025958,2]
[360304900,1746735042468,-630.61406815,0.00025958,2]
[360304901,1746735042477,-630.61406815,0.00025958,2]
[360304902,1746735042487,-630.61406815,0.00025958,2]
[360304903,1746735042497,-630.61406815,0.00025958,2]
[360304904,1746735042506,-630.61406815,0.00025958,2]
[360304905,1746735042516,-2932.35541688,0.00025958,2]
[360304906,1746735042525,-2932.35541688,0.00025958,2]
[360304907,1746735042535,-418.4309816,0.00025958,2]
[360304908,1746735042544,-151.0,0.00025959,7]
[360304909,1746735042555,-151.0,0.00025959,7]
[360304910,1746735042565,-151.0,0.00025959,7]
[360304911,1746735042574,-151.0,0.00025959,7]
[360304912,1746735042584,-151.0,0.00025959,7]
[360304913,1746735042594,-2106.901667,0.00025959,7]
[360304914,1746735042603,-2106.901667,0.00025959,7]
[360304915,1746735042613,-151.0,0.00025959,7]
[360304916,1746735042623,-704.594677,0.00025959,7]
[360304918,1746735042633,-151.0,0.00025959,7]
[360304919,1746735042642,-704.594677,0.00025959,7]
[360304920,1746735042652,-524.67713,0.00025959,7]
[360304921,1746735042661,-524.67713,0.00025959,7]
[360304922,1746735042671,-1151.861518,0.00025959,7]
[360304923,1746735042680,-1151.861518,0.00025959,7]
[360304924,1746735042690,-286.238583,0.00025959,7]
[360304925,1746735042699,-286.238583,0.00025959,7]
[360304926,1746735042709,-163.009931,0.00025959,7]
[360304927,1746735042719,-163.009931,0.00025959,7]
[360304928,1746735042729,-12260.86363296,0.00026452,15]
[360304929,1746735042738,-2812.68241167,0.00026479,2]
[360304931,1746735042748,-150.0,0.0002663,4]
[360304935,1746735042758,-342.31643738,0.0002663,4]
[360304938,1746735042768,-150.0,0.0002663,4]
[360304940,1746735042777,-150.0,0.0002663,4]
[360304943,1746735042787,-150.0,0.0002663,4]
[360304944,1746735042797,-150.0,0.0002663,4]
[360304946,1746735042807,-150.0,0.0002663,4]
[360304948,1746735042816,-150.0,0.0002663,4]
[360304950,1746735042826,-150.0,0.0002663,4]
[360304952,1746735042836,-150.0,0.0002663,4]
[360304954,1746735042845,-150.0,0.0002663,4]
[360304956,1746735042854,-342.31643738,0.0002666,4]
[360304958,1746735042864,-150.0,0.00026662,4]
[360304960,1746735042874,-342.31643738,0.0002669,4]
[360304962,1746735042883,-150.0,0.00026691,4]
[360304965,1746735042893,-150.0,0.00026693,4]
[360304967,1746735042903,-150.0,0.00026708,4]
[360304969,1746735042912,-342.31643738,0.0002672,4]
[360304971,1746735042922,-150.0,0.00026725,4]
[360304973,1746735042931,-342.31643738,0.0002675,4]
[360304974,1746735042941,-150.0,0.00026751,4]
[360304977,1746735042951,-150.0,0.00026756,4]
[360304979,1746735042961,-342.31643738,0.0002678,4]
[360304981,1746735042971,-150.0,0.00026786,4]
[360304983,1746735042980,-150.0,0.00026786,4]
[360304985,1746735042990,-150.0,0.00026788,4]
[360304987,1746735042999,-174.39,0.000268,2]
[360304989,1746735043009,-174.39,0.000268,2]
[360304991,1746735043019,-174.39,0.000268,2]
[360304993,1746735043029,-174.39,0.000268,2]
[360304995,1746735043039,-174.39,0.000268,2]
[360304996,1746735043049,-174.39,0.000268,2]
[360304997,1746735043059,-174.39,0.000268,2]
[360304998,1746735043068,-342.31643738,0.00026809,4]
[360304999,1746735043080,-150.0,0.00026811,4]
[360305000,1746735043090,-150.0,0.00026819,4]
[360305001,1746735043100,-342.31643738,0.00026839,4]
[360305002,1746735043110,-150.0,0.0002685,4]
[360305003,1746735043119,-150.0,0.00026858,4]
[360305004,1746735043130,-150.0,0.00026864,4]
[360305005,1746735043140,-174.39,0.00026867,2]
[360305006,1746735043149,-342.31643738,0.00026869,4]
[360305007,1746735043159,-150.0,0.00026872,4]
[360305008,1746735043170,-150.0,0.00026877,4]
[360305009,1746735043179,-150.0,0.00026877,4]
[360305010,1746735043189,-150.0,0.00026882,4]
[360305011,1746735043200,-342.31643738,0.00026899,4]
[360305012,1746735043210,-2700.0,0.000269,9]
[360305013,1746735043219,-150.0,0.00026913,4]
[360305014,1746735043228,-342.31643738,0.00026929,4]
[360305015,1746735043238,-150.0,0.00026932,4]
[360305016,1746735043248,-150.0,0.00026942,4]
[360305017,1746735043258,-150.0,0.00026942,4]
[360305018,1746735043268,-150.0,0.00026945,4]
[360305019,1746735043278,-342.31643738,0.00026959,4]
[360305020,1746735043288,-150.0,0.00026976,4]
[360305021,1746735043300,-342.31643738,0.00026989,4]
[360305022,1746735043310,-150.0,0.00026992,4]
[360305023,1746735043319,-500.0,0.00027,2]
[360305024,1746735043329,-150.0,0.00027008,4]
[360305025,1746735043340,-342.31643738,0.00027019,4]
[360305026,1746735043350,-150.0,0.00027019,4]
[360305027,1746735043359,-150.0,0.00027039,4]
[360305028,1746735043370,-342.31643738,0.00027049,4]
[360305029,1746735043380,-150.0,0.00027053,4]
[360305030,1746735043390,-150.0,0.00027071,4]
[360305031,1746735043400,-627.0650294,0.00027077,2]
[360305032,1746735043410,-342.31643738,0.00027078,4]
[360305033,1746735043420,-150.0,0.00027085,4]
[360305034,1746735043430,-2000.0,0.00027091,4]
[360305035,1746735043440,-150.0,0.00027097,4]
[360305036,1746735043450,-150.0,0.00027097,4]
[360305037,1746735043460,-150.0,0.00027102,4]
[360305038,1746735043470,-342.31643738,0.00027108,4]
[360305039,1746735043480,-150.0,0.00027113,4]
[360305040,1746735043490,-150.0,0.00027123,4]
[360305041,1746735043499,-150.0,0.00027123,4]
[360305042,1746735043509,-150.0,0.00027123,4]
[360305043,1746735043519,-150.0,0.00027134,4]
[360305044,1746735043529,-342.31643738,0.00027138,4]
[360305045,1746735043538,-150.0,0.00027165,4]
[360305046,1746735043549,-342.31643738,0.00027168,4]
[360305047,1746735043559,-150.0,0.00027174,4]
[360305048,1746735043569,-150.0,0.00027175,4]
[360305049,1746735043578,-150.0,0.00027197,4]
[360305050,1746735043588,-342.31643738,0.00027198,4]
[360305051,1746735043598,-342.31643738,0.00027228,4]
[360305052,1746735043608,-150.0,0.00027228,4]
[360305053,1746735043617,-150.0,0.00027234,4]
[360305054,1746735043626,-12260.86363296,0.00027245,16]
[360305055,1746735043635,-151.0,0.00027245,7]
[360305056,1746735043645,-243.363729,0.00027245,7]
[360305057,1746735043654,-150.0,0.00027253,4]
[360305058,1746735043664,-150.0,0.00027253,4]
[360305059,1746735043673,-342.31643738,0.00027258,4]
[360305060,1746735043683,-150.0,0.0002726,4]
[360305061,1746735043693,-174.39,0.00027277,2]
[360305062,1746735043703,-28937.7977649,0.00027287,3]
[360305063,1746735043712,-22932.2740876,0.00027287,3]
[360305064,1746735043722,-342.31643738,0.00027288,4]
[360305065,1746735043733,-150.0,0.00027291,4]
[360305066,1746735043743,-150.0,0.00027294,4]
[360305067,1746735043752,-1035.50121157,0.00027306,10]
[360305068,1746735043762,-15976.524406,0.00027307,2]
[360305069,1746735043772,-217.17586426,0.00027307,2]
[360305070,1746735043782,-156.33733426,0.00027307,2]
[360305071,1746735043793,-431.89640897,0.00027307,2]
[360305072,1746735043804,-174.39,0.00027309,2]
[360305073,1746735043814,-150.0,0.00027313,4]
[360305074,1746735043823,-342.31643738,0.00027318,4]
[360305075,1746735043833,-28937.7977649,0.00027318,3]
[360305076,1746735043844,-22932.2740876,0.00027318,3]
[360305077,1746735043855,-150.0,0.00027323,4]
[360305078,1746735043865,-969.961703,0.00027328,7]
[360305079,1746735043875,-969.961703,0.00027328,7]
[360305080,1746735043886,-151.0,0.00027328,7]
[360305081,1746735043895,-150.0,0.00027331,4]
[360305082,1746735043905,-524.67713,0.00027338,7]
[360305083,1746735043915,-524.67713,0.00027338,7]
[360305084,1746735043924,-163.009931,0.00027338,7]
[360305085,1746735044226,-163.009931,0.00027338,7]
[360305086,1746735044243,-342.31643738,0.00027347,4]
[360305087,1746735044254,-151.0,0.00027348,7]
[360305088,1746735044263,-151.0,0.00027348,7]
[360305089,1746735044273,-151.0,0.00027348,7]
[360305090,1746735044283,-151.0,0.00027348,7]
[360305091,1746735044293,-151.0,0.00027348,7]
[360305092,1746735044304,-2106.901667,0.00027348,7]
[360305093,1746735044314,-2106.901667,0.00027348,7]
[360305094,1746735044324,-151.0,0.00027348,7]
[360305095,1746735044334,-704.594677,0.00027348,7]
[360305096,1746735044344,-151.0,0.00027348,7]
[360305097,1746735044354,-704.594677,0.00027348,7]
[360305098,1746735044364,-1151.861518,0.00027348,7]
[360305099,1746735044374,-1151.861518,0.00027348,7]
[360305100,1746735044384,-286.238583,0.00027348,7]
[360305101,1746735044393,-286.238583,0.00027348,7]
[360305102,1746735044403,-150.0,0.00027354,4]
[360305103,1746735044413,-150.0,0.00027355,4]
[360305104,1746735044423,-150.0,0.0002737,4]
[360305105,1746735044433,-150.0,0.0002737,4]
[360305106,1746735044443,-150.0,0.0002737,4]
[360305107,1746735044455,-342.31643738,0.00027377,4]
[360305108,1746735044466,-150.0,0.00027386,4]
[360305109,1746735044476,-174.39,0.00027387,2]
[360305110,1746735044486,-198.68,0.00027397,2]
[360305111,1746735044496,-1000.0,0.00027397,2]
[360305112,1746735044506,-190.14,0.00027397,2]
[360305113,1746735044516,-342.31643738,0.00027407,7]
[360305114,1746735044525,-150.0,0.00027409,7]
[360305115,1746735044535,-150.0,0.00027409,7]
[360305116,1746735044545,-150.0,0.00027415,7]
[360305117,1746735044555,-150.0,0.00027417,7]
[360305118,1746735044566,-342.31643738,0.00027437,7]
[360305119,1746735044576,-150.0,0.00027449,7]
[360305120,1746735044586,-342.31643738,0.00027467,7]
[360305121,1746735044595,-150.0,0.00027476,7]
[360305122,1746735044606,-150.0,0.0002748,7]
[360305123,1746735044616,-150.0,0.00027487,7]
[360305124,1746735044626,-342.31643738,0.00027497,7]
[360305125,1746735044636,-150.0,0.00027512,7]
[360305126,1746735044645,-342.31643738,0.00027527,7]
[360305127,1746735044656,-150.0,0.00027536,7]
[360305128,1746735044666,-150.0,0.00027541,7]
[360305129,1746735044675,-150.0,0.00027543,7]
[360305130,1746735044685,-342.31643738,0.00027557,7]
[360305131,1746735044695,-150.0,0.00027565,7]
[360305133,1746735044705,-150.0,0.00027565,7]
[360305135,1746735044715,-150.0,0.00027574,7]
[360305137,1746735044725,-1000.0,0.00027579,5]
[360305139,1746735044735,-342.31643738,0.00027587,7]
[360305140,1746735044745,-150.0,0.00027596,7]
[360305141,1746735044755,-150.0,0.00027606,7]
[360305142,1746735044764,-342.31643738,0.00027616,7]
[360305143,1746735044774,-150.0,0.00027616,7]
[360305144,1746735044784,-150.0,0.00027616,7]
[360305145,1746735044794,-150.0,0.00027616,7]
[360305146,1746735044805,-150.0,0.00027616,7]
[360305147,1746735044815,-150.0,0.00027637,7]
[360305148,1746735044824,-150.0,0.00027642,7]
[360305149,1746735044834,-342.31643738,0.00027646,7]
[360305150,1746735044843,-150.0,0.00027657,7]
[360305151,1746735044853,-150.0,0.00027669,7]
[360305152,1746735044863,-342.31643738,0.00027676,7]
[360305153,1746735044873,-150.0,0.000277,7]
[360305154,1746735044883,-342.31643738,0.00027706,7]
[360305155,1746735044892,-150.0,0.00027717,7]
[360305156,1746735044902,-150.0,0.0002772,7]
[360305157,1746735044911,-150.0,0.0002772,7]
[360305158,1746735044921,-150.0,0.00027732,7]
[360305159,1746735044931,-342.31643738,0.00027736,7]
[360305160,1746735044941,-150.0,0.00027763,7]
[360305161,1746735044950,-342.31643738,0.00027766,7]
[360305162,1746735044960,-150.0,0.00027768,7]
[360305163,1746735044969,-150.0,0.00027777,7]
[360305164,1746735044979,-150.0,0.00027795,7]
[360305165,1746735044988,-342.31643738,0.00027796,7]
[360305166,1746735044999,-150.0,0.00027798,7]
[360305167,1746735045009,-167.38850894,0.000278,2]
[360305168,1746735045018,-342.31643738,0.00027826,7]
[360305169,1746735045028,-150.0,0.00027826,7]
[360305170,1746735045037,-150.0,0.00027838,7]
[360305171,1746735045049,-342.31643738,0.00027856,7]
[360305172,1746735045060,-150.0,0.00027858,7]
[360305173,1746735045069,-150.0,0.00027863,7]
[360305174,1746735045082,-150.0,0.00027863,7]
[360305175,1746735045091,-150.0,0.00027876,7]
[360305176,1746735045101,-150.0,0.00027876,7]
[360305177,1746735045112,-1000.0,0.00027879,5]
[360305178,1746735045123,-342.31643738,0.00027885,7]
[360305179,1746735045133,-150.0,0.00027889,7]
[360305180,1746735045144,-150.0,0.00027898,7]
[360305181,1746735045155,-342.31643738,0.00027915,7]
[360305182,1746735045165,-150.0,0.00027921,7]
[360305183,1746735045175,-342.31643738,0.00027945,7]
[360305184,1746735045185,-150.0,0.00027952,7]
[360305185,1746735045194,-150.0,0.00027954,7]
[360305186,1746735045203,-150.0,0.00027959,7]
[360305187,1746735045213,-342.31643738,0.00027975,7]
[360305188,1746735045223,-150.0,0.00027984,7]
[360305189,1746735045232,-150.0,0.00027996,7]
[360305190,1746735045242,-183.58356785,0.00027997,2]
[360305191,1746735045251,-500.0,0.00028,2]
[360305192,1746735045261,-342.31643738,0.00028005,7]
[360305193,1746735045270,-22932.2740876,0.00028008,3]
[360305194,1746735045280,-150.0,0.00028015,7]
[360305195,1746735045289,-150.0,0.00028019,7]
[360305196,1746735045299,-151.0,0.00028028,7]
[360305197,1746735045308,-243.363729,0.00028028,7]
[360305198,1746735045318,-150.0,0.00028032,7]
[360305199,1746735045328,-150.0,0.00028032,7]
[360305200,1746735045337,-342.31643738,0.00028035,7]
[360305201,1746735045347,-12260.86363296,0.00028038,18]
[360305202,1746735045356,-150.0,0.00028047,7]
[360305203,1746735045365,-174.39,0.00028055,2]
[360305204,1746735045375,-342.31643738,0.00028065,7]
[360305205,1746735045385,-150.0,0.00028078,7]
[360305206,1746735045395,-150.0,0.00028079,7]
[360305207,1746735045405,-342.31643738,0.00028095,7]
[360305208,1746735045415,-150.0,0.0002811,7]
[360305209,1746735045425,-150.0,0.0002811,7]
[360305210,1746735045436,-150.0,0.0002811,7]
[360305211,1746735045446,-150.0,0.0002811,7]
[360305212,1746735045456,-150.0,0.0002811,7]
[360305213,1746735045466,-150.0,0.0002811,7]
[360305214,1746735045476,-342.31643738,0.00028125,7]
[360305215,1746735045486,-150.0,0.0002814,7]
[360305216,1746735045495,-150.0,0.00028141,7]
[360305217,1746735045505,-342.31643738,0.00028154,7]
[360305218,1746735045514,-150.0,0.00028173,7]
[360305219,1746735045533,-342.31643738,0.00028184,7]
[360305220,1746735045545,-150.0,0.00028187,7]
[360305221,1746735045556,-150.0,0.00028187,7]
[360305222,1746735045566,-150.0,0.000282,7]
[360305223,1746735045575,-150.0,0.00028204,7]
[360305224,1746735045585,-342.31643738,0.00028214,7]
[360305225,1746735045595,-1123.57,0.00028219,2]
[360305226,1746735045606,-150.0,0.00028223,7]
[360305227,1746735045615,-150.0,0.00028235,7]
[360305228,1746735045625,-342.31643738,0.00028244,7]
[360305229,1746735045635,-152.0,0.00028252,3]
[360305230,1746735045645,-150.0,0.00028261,7]
[360305233,1746735045656,-150.0,0.00028265,7]
[360305234,1746735045666,-150.0,0.00028267,7]
[360305236,1746735045679,-342.31643738,0.00028274,7]
[360305238,1746735045688,-150.0,0.00028298,7]
[360305240,1746735045698,-342.31643738,0.00028304,7]
[360305241,1746735045707,-301.17,0.00028307,2]
[360305242,1746735045718,-150.0,0.00028321,7]
[360305243,1746735045728,-150.0,0.0002833,7]
[360305244,1746735045738,-342.31643738,0.00028334,7]
[360305245,1746735045749,-150.0,0.00028343,7]
[360305247,1746735045759,-150.0,0.00028343,7]
[360305249,1746735045769,-150.0,0.00028356,7]
[360305251,1746735045778,-150.0,0.00028356,7]
[360305253,1746735045788,-150.0,0.00028361,7]
[360305255,1746735045798,-342.31643738,0.00028364,7]
[360305257,1746735045808,-150.0,0.00028381,7]
[360305259,1746735045817,-150.0,0.00028393,7]
[360305261,1746735045827,-342.31643738,0.00028394,7]
[360305263,1746735045836,-150.0,0.00028421,7]
[360305264,1746735045846,-342.31643738,0.00028423,7]
[360305265,1746735045856,-150.0,0.00028424,7]
[360305266,1746735045866,-150.0,0.00028442,7]
[360305267,1746735045876,-150.0,0.00028451,7]
[360305268,1746735045885,-342.31643738,0.00028453,7]
[360305269,1746735045895,-150.0,0.00028456,7]
[360305270,1746735045904,-342.31643738,0.00028483,7]
[360305271,1746735045914,-150.0,0.00028487,7]
[360305272,1746735045923,-150.0,0.00028499,7]
[360305273,1746735045934,-150.0,0.00028499,7]
[360305274,1746735045944,-1010.0,0.000285,2]
[360305275,1746735045954,-19834.82,0.000285,2]
[360305276,1746735045965,-150.0,0.00028502,7]
[360305277,1746735045974,-1000.0,0.00028507,2]
[360305278,1746735045985,-342.31643738,0.00028513,7]
[360305279,1746735045995,-150.0,0.00028519,7]
[360305280,1746735046007,-150.0,0.00028525,2]
[360305281,1746735046016,-342.31643738,0.00028543,7]
[360305282,1746735046027,-150.0,0.0002855,7]
[360305283,1746735046037,-174.39,0.00028562,2]
[360305284,1746735046047,-150.0,0.00028562,7]
[360305285,1746735046058,-28937.7977649,0.00028572,3]
[360305286,1746735046068,-342.31643738,0.00028573,7]
[360305287,1746735046083,-150.0,0.00028577,7]
[360305288,1746735046093,-150.0,0.00028582,7]
[360305289,1746735046102,-969.961703,0.00028582,7]
[360305290,1746735046112,-969.961703,0.00028582,7]
[360305291,1746735046123,-151.0,0.00028582,7]
[360305292,1746735046132,-17284.26683708,0.00028582,2]
[360305293,1746735046142,-342.31643738,0.00028603,7]
[360305294,1746735046153,-150.0,0.00028603,7]
[360305295,1746735046164,-150.0,0.00028603,7]
[360305296,1746735046173,-150.0,0.00028603,7]
[360305297,1746735046183,-150.0,0.00028603,7]
[360305298,1746735046192,-150.0,0.00028613,7]
[360305299,1746735046202,-150.0,0.00028623,7]
[360305300,1746735046212,-342.31643738,0.00028633,7]
[360305301,1746735046221,-150.0,0.00028642,2]
[360305302,1746735046231,-150.0,0.00028645,7]
[360305303,1746735046241,-150.0,0.00028655,7]
[360305304,1746735046251,-150.0,0.00028655,7]
[360305305,1746735046260,-342.31643738,0.00028663,7]
[360305306,1746735046271,-150.0,0.00028676,7]
[360305307,1746735046282,-150.0,0.00028679,7]
[360305308,1746735046291,-150.0,0.00028683,7]
[360305309,1746735046304,-342.31643738,0.00028692,7]
[360305310,1746735046314,-22932.2740876,0.00028697,3]